bitfinex-derivatives/quotes_SOLF0:USTF0_20250929
["timestamp","ask_amount","ask_price","bid_price","bid_amount"]
[1759165324982,4.3166,208.37,208.34,20.5741151]
[1759165325984,7.78,208.4,208.34,20.5741151]
[1759165326685,4.3166,208.37,208.34,20.5741151]
[1759165326882,7.78,208.36,208.34,4.41473872]
[1759165327083,7.78,208.36,208.26,8.02]
[1759165328882,7.78,208.3,208.22,11.24217477]
[1759165329278,4.3183,208.29,208.18,4.3202]
[1759165329479,7.78,208.3,208.19,8.02]
[1759165330583,12.0981,208.3,208.21,4.3196]
[1759165330783,7.78,208.34,208.22,8.02]
[1759165331382,7.78,208.34,208.24,8.02]
[1759165332095,12.0972,208.34,208.25,4.3188]
[1759165332482,7.78,208.34,208.27,8.02]
[1759165332985,7.78,208.34,208.23,3.22217477]
[1759165333393,7.78,208.34,208.23,4.3193]
[1759165333686,7.78,208.34,208.24,8.02]
[1759165334992,7.78,208.34,208.26,4.3186]
[1759165336596,4.3173,208.33,208.26,4.3186]
[1759165336797,7.73,208.32,208.24,8.02]
[1759165337197,12.0477,208.32,208.24,8.02]
[1759165339193,4.3179,208.31,208.24,8.02]
[1759165339396,186.8091,208.36,208.19,7.39]
[1759165339397,3.22217477,208.32,208.19,7.39]
[1759165339602,7.73,208.31,208.19,7.39]
[1759165339999,7.73,208.31,208.19,10.61217477]
[1759165340200,7.73,208.27,208.19,7.39]
[1759165340996,7.73,208.27,208.19,11.71]
[1759165341802,59.54,208.35,208.21,7.39]
[1759165341994,7.73,208.34,208.21,7.39]
[1759165342301,7.73,208.34,208.22,7.39]
[1759165342695,4.3175,208.33,208.24,4.319]
[1759165342898,7.73,208.34,208.22,7.39]
[1759165343997,12.0471,208.34,208.25,7.39]
[1759165344403,7.73,208.34,208.25,7.39]
[1759165345004,74.806,208.34,208.22,4.3195]
[1759165345200,10.87217477,208.32,208.21,8.06]
[1759165345504,4.3185,208.28,208.21,8.06]
[1759165345700,7.65,208.27,208.21,8.06]
[1759165346109,7.65,208.27,208.16,8.06]
[1759165347593,4.3192,208.24,208.16,12.3807]
[1759165348204,4.3196,208.23,208.16,8.06]
[1759165348400,4.3196,208.23,208.12,8.06]
[1759165348601,7.65,208.22,208.12,8.06]
[1759165348805,11.9697,208.22,208.12,8.06]
[1759165349007,67.1726,208.29,208.14,3.22217477]
[1759165349008,7.65,208.29,208.14,3.22217477]
[1759165349207,67.1659,208.31,208.14,3.22217477]
[1759165349208,7.65,208.27,208.15,8.06]
[1759165349512,4.319,208.25,208.16,4.3207]
[1759165349706,7.65,208.27,208.15,8.06]
[1759165350710,67.1816,208.26,208.15,8.06]
[1759165350911,7.65,208.25,208.15,8.06]
[1759165351512,4.3198,208.22,208.15,8.06]
[1759165352414,4.3201,208.2,208.12,4.3216]
[1759165353810,7.65,208.22,208.14,8.06]
[1759165354313,7.65,208.22,208.14,12.3811]
[1759165355714,11.9698,208.22,208.14,8.06]
[1759165356212,7.65,208.22,208.11,12.3817]
[1759165356711,7.65,208.22,208.11,8.06]
[1759165357218,4.32,208.21,208.12,4.3215]
[1759165357821,7.65,208.22,208.11,8.06]
[1759165358415,4.3199,208.21,208.12,4.3216]
[1759165359216,4.3202,208.2,208.12,4.3216]
[1759165359721,7.65,208.22,208.11,8.06]
[1759165359919,67.2049,208.19,208.07,8.06]
[1759165360117,7.65,208.16,208.06,4.3228]
[1759165360318,7.65,208.16,208.07,8.06]
[1759165360920,7.65,208.16,208.08,4.3223]
[1759165361219,7.65,208.22,208.09,11.28217477]
[1759165361424,7.65,208.22,208.1,8.06]
[1759165361822,11.9698,208.22,208.1,8.06]
[1759165362419,3.22217477,208.3,208.16,8.06]
[1759165362622,7.65,208.31,208.22,8.06]
[1759165362833,11.9679,208.31,208.22,8.06]
[1759165363032,7.65,208.31,208.19,3.22217477]
[1759165363327,10.87217477,208.29,208.18,8.06]
[1759165363524,7.65,208.29,208.18,8.06]
[1759165363718,7.65,208.29,208.2,8.06]
[1759165364526,7.65,208.29,208.2,12.38]
[1759165365130,11.9683,208.29,208.2,12.38]
[1759165365527,7.65,208.29,208.2,8.06]
[1759165366222,67.1847,208.25,208.15,8.06]
[1759165366421,10.87217477,208.24,208.11,8.06]
[1759165366821,7.65,208.22,208.11,8.06]
[1759165367034,7.65,208.2,208.07,8.06]
[1759165367331,7.65,208.2,208.07,11.28217477]
[1759165367733,67.2025,208.2,208.07,11.28217477]
[1759165367929,67.2113,208.17,208.07,8.06]
[1759165368130,67.2113,208.17,208.03,8.06]
[1759165368131,7.65,208.14,208.03,8.06]
[1759165368432,4.3223,208.1,208.03,8.06]
[1759165368830,4.3225,208.09,208.03,8.06]
[1759165369033,7.65,208.11,207.99,334.9643]
[1759165369230,7.65,208.07,207.93,8.06]
[1759165369433,3.22217477,208.12,207.97,8.06]
[1759165369735,23.33,208.11,207.99,8.06]
[1759165370230,7.65,208.11,207.99,8.06]
[1759165370633,11.9719,208.11,207.99,12.3843]
[1759165371538,4.3223,208.09,207.99,12.3843]
[1759165371732,4.3223,208.09,207.99,8.06]
[1759165372036,7.65,208.08,207.99,8.06]
[1759165372540,4.3227,208.07,207.95,17.06446068]
[1759165372928,4.3227,208.07,207.95,8.06]
[1759165373135,4.3227,208.07,207.95,12.3852]
[1759165374731,8.02,208.06,207.95,12.3852]
[1759165375129,8.02,208.06,207.96,7.62]
[1759165375843,12.3422,208.1,207.96,7.62]
[1759165376044,43.2022,208.1,207.96,7.62]
[1759165376343,4.3225,208.08,207.96,11.9448]
[1759165376842,4.3225,208.08,207.98,4.3245]
[1759165377143,8.02,208.1,207.99,7.62]
[1759165378339,4.3223,208.09,207.99,7.62]
[1759165379038,4.3223,208.09,208.0,4.3241]
[1759165379732,8.02,208.1,208.0,4.3241]
[1759165379936,8.02,208.07,207.94,7.62]
[1759165380139,8.02,208.06,207.89,7.62]
[1759165380440,8.02,208.01,207.9,4.3261]
[1759165380738,8.02,208.01,207.89,7.62]
[1759165381137,12.3442,208.01,207.89,11.9464]
[1759165381543,8.02,208.01,207.91,4.326]
[1759165381846,8.02,208.01,207.89,7.62]
[1759165382145,8.02,207.96,207.85,5.17368915]
[1759165382344,8.02,207.96,207.84,7.62]
[1759165382541,4.3256,207.94,207.84,7.62]
[1759165382737,75.2984,207.96,207.84,7.62]
[1759165382941,111.22,207.96,207.84,7.62]
[1759165383136,67.2822,207.95,207.81,4.3281]
[1759165383343,13.19368915,207.94,207.79,7.62]
[1759165383738,8.02,207.88,207.79,7.62]
[1759165383942,8.02,207.88,207.76,322.66]
[1759165384138,4.3269,207.87,207.76,322.66]
[1759165384342,8.02,207.86,207.74,7.62]
[1759165384543,8.02,207.86,207.76,67.3424]
[1759165384743,8.02,207.91,207.78,7.62]
[1759165384950,8.02,207.89,207.73,7.62]
[1759165385145,67.3108,207.86,207.69,55.5]
[1759165385352,4.3279,207.82,207.71,4.33]
[1759165385545,8.02,207.81,207.69,7.62]
[1759165385751,8.02,207.87,207.71,7.62]
[1759165385957,75.3281,207.87,207.71,7.62]
[1759165386243,8.02,207.85,207.71,7.62]
[1759165387150,8.02,207.85,207.75,74.9656]
[1759165388352,8.02,207.85,207.76,4.329]
[1759165389349,8.02,207.85,207.75,7.62]
[1759165390246,120.92,207.89,207.7,4.3303]
[1759165390247,13.19368915,207.86,207.7,4.3303]
[1759165390547,13.19368915,207.86,207.68,74.9879]
[1759165390548,8.02,207.85,207.68,74.9879]
[1759165390947,8.02,207.85,207.71,74.979]
[1759165391548,8.02,207.85,207.72,67.3557]
[1759165392151,8.02,207.85,207.73,7.62]
[1759165392351,12.3473,207.85,207.73,11.9497]
[1759165392546,8.02,207.85,207.73,7.62]
[1759165393047,4.3281,207.81,207.73,7.62]
[1759165394245,8.02,207.82,207.67,72.54378915]
[1759165394246,4.3286,207.79,207.68,12.3208]
[1759165394657,11.8886,207.79,207.68,12.3208]
[1759165394851,7.56,207.79,207.68,7.99]
[1759165395647,4.328,207.82,207.68,7.99]
[1759165396052,7.56,207.81,207.68,7.99]
[1759165396253,7.56,207.79,207.68,7.99]
[1759165397058,11.8885,207.79,207.68,12.3208]
[1759165397556,4.329,207.77,207.68,7.99]
[1759165399262,4.3294,207.75,207.68,7.99]
[1759165399557,12.73368915,207.79,207.68,7.99]
[1759165399558,5.17368915,207.79,207.68,7.99]
[1759165399755,4.3289,207.78,207.68,7.99]
[1759165400461,7.56,207.77,207.68,7.99]
[1759165401060,4.3295,207.75,207.68,7.99]
[1759165402052,7.56,207.77,207.68,7.99]
[1759165402256,85.51368915,207.83,207.68,7.99]
[1759165402458,7.56,207.82,207.69,67.3654]
[1759165402764,7.56,207.82,207.7,7.99]
[1759165403162,11.8881,207.82,207.73,4.3296]
[1759165403362,7.56,207.82,207.7,7.99]
[1759165403563,4.3283,207.81,207.73,4.3298]
[1759165403766,4.3283,207.81,207.7,7.99]
[1759165404972,7.91,207.78,207.66,7.83]
[1759165405362,4.3298,207.73,207.62,7.83]
[1759165405558,5.17368915,207.75,207.62,7.83]
[1759165405759,5.17368915,207.75,207.63,4.3317]
[1759165405964,7.91,207.76,207.64,7.83]
[1759165406462,4.33,207.72,207.64,7.83]
[1759165406664,7.91,207.72,207.64,7.83]
[1759165406969,7.91,207.72,207.61,16.8862151]
[1759165407570,13.08368915,207.76,207.65,7.83]
[1759165407875,4.3297,207.74,207.65,7.83]
[1759165408074,7.91,207.76,207.65,7.83]
[1759165408379,5.17368915,207.79,207.65,7.83]
[1759165408380,7.91,207.79,207.66,7.83]
[1759165408573,7.91,207.79,207.71,12.16]
[1759165409476,4.3283,207.81,207.72,4.3298]
[1759165409875,7.91,207.83,207.74,4.3294]
[1759165410281,7.91,207.83,207.71,7.83]
[1759165410484,7.91,207.83,207.71,75.1884]
[1759165410780,94.38,207.87,207.74,7.83]
[1759165411471,4.3271,207.86,207.78,4.3287]
[1759165411674,94.38,207.87,207.78,4.3287]
[1759165412174,7.91,207.93,207.79,7.83]
[1759165412369,7.91,207.93,207.81,7.83]
[1759165412780,133.7149,207.97,207.84,7.83]
[1759165413078,5.17368915,208.01,207.87,7.83]
[1759165413279,7.91,208.07,207.92,67.2896]
[1759165413473,7.91,208.07,207.89,67.2993]
[1759165413474,7.91,208.07,207.93,7.83]
[1759165413777,7.91,208.05,207.93,7.83]
[1759165414481,4.3237,208.02,207.93,7.83]
[1759165415682,7.91,208.0,207.86,7.83]
[1759165415979,7.91,207.97,207.81,7.83]
[1759165416373,4.3249,207.96,207.83,4.3275]
[1759165416573,7.91,207.97,207.84,7.83]
[1759165417576,7.91,207.97,207.85,4.3271]
[1759165417780,7.91,207.97,207.86,7.83]
[1759165417974,4.3241,208.0,207.86,7.83]
[1759165418181,4.3245,207.98,207.86,7.83]
[1759165418382,12.2345,207.98,207.86,7.83]
[1759165418783,12.2345,207.98,207.86,12.1569]
[1759165419081,7.91,207.98,207.87,7.83]
[1759165420190,7.91,207.97,207.81,129.71]
[1759165421078,4.3253,207.94,207.82,4.3277]
[1759165421579,7.91,207.97,207.83,7.83]
[1759165421983,12.2348,207.97,207.87,7.83]
[1759165423279,7.91,207.95,207.82,13.00368915]
[1759165423486,67.2834,207.94,207.82,7.83]
[1759165423886,4.326,207.91,207.82,7.83]
[1759165424088,7.91,207.95,207.82,7.83]
[1759165424388,67.2779,207.96,207.82,7.83]
[1759165424389,7.91,207.93,207.82,7.83]
[1759165424982,67.293,207.91,207.82,7.83]
[1759165425186,67.2995,207.89,207.78,323.28]
[1759165425483,67.2995,207.89,207.77,7.83]
[1759165425484,4.3265,207.89,207.77,7.83]
[1759165425686,7.91,207.9,207.77,7.83]
[1759165426085,12.2362,207.9,207.8,4.3281]
[1759165426387,7.91,207.9,207.77,7.83]
[1759165426890,12.2361,207.9,207.77,7.83]
[1759165427690,7.91,207.9,207.8,7.83]
[1759165427887,4.3257,207.93,207.8,13.00368915]
[1759165428190,12.2353,207.94,207.83,4.3276]
[1759165428385,12.2353,207.94,207.84,7.83]
[1759165428986,7.91,207.94,207.84,7.83]
[1759165429187,4.3249,207.97,207.84,13.00368915]
[1759165429390,67.2705,207.98,207.84,13.00368915]
[1759165429588,7.91,207.97,207.84,13.00368915]
[1759165429986,12.2349,207.97,207.85,7.83]
[1759165430592,7.91,207.97,207.85,7.83]
[1759165430793,7.91,207.95,207.85,7.83]
[1759165430989,4.3265,207.88,207.76,13.00368915]
[1759165431195,75.2136,207.88,207.76,7.83]
[1759165431893,7.91,207.93,207.8,5.17368915]
[1759165432088,7.91,207.93,207.81,7.83]
[1759165432284,4.3259,207.91,207.81,7.83]
[1759165432885,7.91,207.93,207.81,7.83]
[1759165433289,4.3265,207.89,207.81,7.83]
[1759165433491,7.91,207.89,207.75,5.17368915]
[1759165433696,7.91,207.86,207.74,7.83]
[1759165434192,7.91,207.86,207.74,12.1594]
[1759165434891,4.3277,207.83,207.74,7.83]
[1759165435195,7.91,207.86,207.74,7.83]
[1759165435590,4.3272,207.85,207.74,7.83]
[1759165435894,75.2202,207.86,207.74,7.83]
[1759165436191,67.322,207.82,207.69,7.47]
[1759165436391,7.83,207.81,207.69,7.47]
[1759165436893,4.329,207.77,207.69,7.47]
[1759165437393,4.3284,207.8,207.69,7.47]
[1759165437692,122.22,207.84,207.7,9.03114252]
[1759165437896,122.22,207.84,207.71,7.47]
[1759165438894,7.83,207.83,207.71,7.47]
[1759165440098,4.3286,207.79,207.71,7.47]
[1759165440398,7.83,207.83,207.71,7.47]
[1759165441104,7.83,207.79,207.66,339.68114252]
[1759165441609,7.83,207.79,207.68,4.3305]
[1759165442109,4.3287,207.78,207.68,4.3305]
[1759165442403,4.3287,207.78,207.69,11.8003]
[1759165442808,7.83,207.79,207.7,4.3301]
[1759165443607,4.3288,207.78,207.69,7.47]
[1759165444107,7.83,207.79,207.7,4.3301]
[1759165445310,130.88783751,207.84,207.69,74.8336]
[1759165445606,130.88783751,207.84,207.67,72.71121272]
[1759165445607,130.88783751,207.84,207.7,7.47]
[1759165445803,4.3281,207.81,207.73,4.3295]
[1759165445998,7.83,207.84,207.72,7.47]
[1759165446204,7.83,207.91,207.76,7.47]
[1759165446399,7.83,207.91,207.79,67.3303]
[1759165446606,73.15,207.96,207.8,7.47]
[1759165446804,73.15,207.96,207.82,7.47]
[1759165447007,4.3255,207.94,207.85,4.327]
[1759165447404,73.15,207.96,207.82,7.47]
[1759165447604,73.15,207.96,207.84,7.47]
[1759165448203,7.83,207.96,207.84,7.47]
[1759165448814,4.3253,207.94,207.85,4.3271]
[1759165449015,7.83,207.96,207.84,7.47]
[1759165449315,4.3266,207.88,207.78,7.47]
[1759165449511,7.83,207.89,207.78,7.47]
[1759165449714,7.83,207.86,207.72,7.47]
[1759165450113,7.83,207.84,207.72,7.47]
[1759165450319,7.83,207.81,207.68,67.78]
[1759165450711,7.83,207.81,207.71,11.8001]
[1759165450912,7.83,207.81,207.71,7.47]
[1759165451216,122.22,207.84,207.71,74.8269]
[1759165451411,7.83,207.86,207.75,7.47]
[1759165451617,39.13,207.92,207.75,7.47]
[1759165451818,4.3263,207.89,207.79,4.3282]
[1759165452018,7.83,207.92,207.78,7.47]
[1759165452213,7.83,207.92,207.8,67.3281]
[1759165452414,7.83,207.92,207.81,7.47]
[1759165453215,65.24,207.96,207.81,74.7946]
[1759165453514,4.3252,207.95,207.87,4.3267]
[1759165453718,65.24,207.96,207.87,4.3267]
[1759165454318,69.5649,207.96,207.87,4.3267]
[1759165454914,69.5649,207.96,207.85,4.3271]
[1759165455114,65.24,207.96,207.83,7.47]
[1759165455921,4.3257,207.92,207.83,7.47]
[1759165456113,7.96,207.93,207.83,7.47]
[1759165456514,12.2857,207.93,207.83,11.7974]
[1759165457823,69.5651,207.96,207.83,7.47]
[1759165458927,65.24,207.96,207.87,4.3266]
[1759165460223,65.24,207.96,207.89,4.3263]
[1759165460723,7.96,207.98,207.91,4.3259]
[1759165461127,323.18,208.01,207.88,67.3011]
[1759165461329,7.96,208.02,207.9,8.08]
[1759165462424,7.96,208.02,207.94,4.3253]
[1759165463131,7.96,208.02,207.95,4.3249]
[1759165463428,122.14,208.03,207.94,8.08]
[1759165463625,122.14,208.03,207.94,4.3251]
[1759165463626,130.1,208.03,207.94,4.3251]
[1759165463824,130.1,208.03,207.93,8.08]
[1759165464031,7.96,208.03,207.93,8.08]
[1759165464234,0.1947,208.04,207.97,4.3245]
[1759165465031,0.1947,208.04,207.97,7.81]
[1759165465421,7.7647,208.04,207.91,122.02]
[1759165465937,4.3236,208.03,207.93,4.3253]
[1759165466322,0.1947,208.04,207.94,7.81]
[1759165466528,7.7647,208.04,207.94,7.81]
[1759165467621,7.7647,208.04,207.95,4.3249]
[1759165469733,12.0881,208.04,207.95,4.3249]
[1759165470329,0.1947,208.04,207.96,7.81]
[1759165470528,7.57,208.13,208.01,7.81]
[1759165470927,7.57,208.17,208.01,7.81]
[1759165471228,7.57,208.17,208.02,122.12]
[1759165471428,4.3214,208.13,208.03,4.3234]
[1759165471629,7.57,208.12,207.96,7.81]
[1759165471830,7.57,208.09,207.96,7.81]
[1759165472229,7.57,208.09,207.96,12.1347]
[1759165473027,11.8932,208.05,207.96,12.1347]
[1759165473536,11.8932,208.05,207.97,4.3245]
[1759165473737,11.8932,208.05,207.96,7.81]
[1759165473936,11.8932,208.05,207.96,12.1347]
[1759165474138,7.57,208.05,207.96,7.81]
[1759165475937,7.57,208.05,207.98,4.3242]
[1759165479242,7.57,208.05,207.96,7.81]
[1759165481243,7.57,208.05,207.96,12.1347]
[1759165482041,4.3232,208.04,207.96,12.1347]
[1759165482935,7.57,208.1,207.96,7.81]
[1759165483340,7.57,208.19,208.03,7.81]
[1759165483535,7.57,208.19,208.04,67.2493]
[1759165483741,0.83646809,208.2,208.03,62.99]
[1759165484145,7.57,208.19,208.03,7.81]
[1759165484544,7.57,208.14,208.03,7.81]
[1759165484752,7.57,208.18,208.01,7.81]
[1759165485144,4.321,208.15,208.05,4.3228]
[1759165485349,7.57,208.14,208.05,4.3228]
[1759165486141,7.57,208.14,208.02,67.2565]
[1759165486345,7.57,208.14,208.03,67.2532]
[1759165487251,7.57,208.14,208.05,67.2471]
[1759165487453,7.57,208.14,208.05,75.0571]
[1759165488545,7.57,208.14,208.07,67.2399]
[1759165489348,7.57,208.14,208.1,4.3218]
[1759165490455,7.57,208.19,208.07,67.2408]
[1759165490848,11.8902,208.19,208.07,67.2408]
[1759165491159,7.57,208.19,208.05,75.0571]
[1759165491548,4.3209,208.16,208.08,4.3223]
[1759165491749,11.8909,208.16,208.05,7.81]
[1759165492646,11.8909,208.16,208.09,4.322]
[1759165494861,4.321,208.15,208.07,4.3225]
[1759165495059,4.321,208.15,208.05,7.81]
[1759165495261,7.57,208.16,208.06,67.2434]
[1759165495756,7.57,208.16,208.1,4.3218]
[1759165497457,7.94,208.17,208.11,4.3216]
[1759165498256,7.94,208.17,208.1,7.98]
[1759165498656,4.3199,208.2,208.1,7.98]
[1759165499457,7.94,208.21,208.1,7.98]
[1759165499662,7.94,208.2,208.06,13.1494655]
[1759165499863,7.94,208.2,208.06,7.98]
[1759165500263,7.94,208.2,208.1,67.2307]
[1759165500463,7.94,208.25,208.12,7.98]
[1759165500963,67.186,208.24,208.07,67.2406]
[1759165501167,7.94,208.18,208.03,7.98]
[1759165501471,7.94,208.18,208.07,7.98]
[1759165501865,4.3206,208.17,208.11,4.3216]
[1759165502167,7.94,208.18,208.03,7.98]
[1759165503367,13.1094655,208.15,208.03,7.98]
[1759165504670,7.94,208.15,208.04,67.2499]
[1759165504872,7.94,208.15,208.03,75.2331]
[1759165505066,7.94,208.15,208.03,7.98]
[1759165505768,13.1094655,208.15,208.03,7.98]
[1759165505968,4.3216,208.12,208.03,7.98]
[1759165506370,7.94,208.13,208.03,75.233]
[1759165506668,7.94,208.13,208.03,67.253]
[1759165506873,51.1811,208.15,208.05,7.98]
[1759165507968,51.1811,208.15,208.06,4.3227]
[1759165508374,51.1811,208.15,208.05,7.98]
[1759165508974,51.1811,208.15,208.07,4.3224]
[1759165509175,51.1811,208.15,208.05,7.98]
[1759165509370,46.86,208.15,208.05,7.98]
[1759165509575,7.94,208.17,208.08,4.3222]
[1759165509771,7.94,208.17,208.05,7.98]
[1759165510672,4.3212,208.14,208.06,4.3227]
[1759165511174,7.94,208.17,208.05,7.98]
[1759165511371,7.94,208.17,208.06,7.98]
[1759165511963,7.94,208.17,208.11,4.3217]
[1759165512879,7.94,208.17,208.05,7.98]
[1759165513378,7.94,208.17,208.09,4.3222]
[1759165513981,4.3208,208.16,208.09,4.3222]
[1759165515974,4.3208,208.16,208.07,12.3025]
[1759165516482,7.94,208.17,208.09,4.322]
[1759165516869,5.1694655,208.21,208.07,75.2202]
[1759165517074,4.3202,208.19,208.1,4.3219]
[1759165517575,133.2998,208.21,208.08,7.98]
[1759165517775,128.98,208.21,208.1,7.98]
[1759165518480,133.2998,208.21,208.14,4.321]
[1759165518682,128.98,208.21,208.1,7.98]
[1759165518979,12.26,208.2,208.11,4.3216]
[1759165519178,12.26,208.2,208.11,12.3016]
[1759165519480,7.94,208.2,208.11,7.98]
[1759165520069,4.3204,208.18,208.11,7.98]
[1759165520881,4.3204,208.18,208.11,12.3016]
[1759165521087,12.26,208.2,208.11,7.98]
[1759165521374,7.95,208.24,208.1,7.69]
[1759165521580,128.97,208.24,208.1,7.69]
[1759165521879,4.3198,208.21,208.14,4.3209]
[1759165522885,128.97,208.24,208.14,4.3209]
[1759165523273,7.95,208.24,208.13,21.82606428]
[1759165523476,7.95,208.24,208.14,7.69]
[1759165523678,120.94,208.26,208.14,67.2178]
[1759165523879,120.94,208.26,208.15,7.69]
[1759165524578,120.94,208.26,208.18,4.3202]
[1759165525085,120.94,208.26,208.18,12.2902]
[1759165525279,120.94,208.26,208.18,7.97]
[1759165525882,8.01,208.25,208.16,4.3206]
[1759165526079,8.01,208.25,208.13,22.37622136]
[1759165526281,8.01,208.25,208.13,7.97]
[1759165526685,8.01,208.21,208.13,7.97]
[1759165527879,8.01,208.26,208.13,67.2211]
[1759165528083,8.01,208.26,208.14,7.97]
[1759165528292,8.01,208.26,208.16,7.97]
[1759165528787,120.84,208.28,208.19,12.2901]
[1759165529781,120.84,208.28,208.19,7.97]
[1759165530081,8.01,208.27,208.15,7.97]
[1759165530278,12.3284,208.27,208.15,7.97]
[1759165530584,8.01,208.27,208.17,4.3203]
[1759165531581,4.3188,208.26,208.17,4.3203]
[1759165531780,8.01,208.27,208.19,4.3201]
[1759165531987,8.01,208.27,208.18,7.97]
[1759165532186,4.3188,208.26,208.18,7.97]
[1759165532480,8.01,208.27,208.18,7.97]
[1759165533888,8.01,208.27,208.2,4.3197]
[1759165534193,4.318,208.29,208.2,4.3197]
[1759165534394,125.058,208.3,208.21,12.2895]
[1759165534594,125.058,208.3,208.21,7.97]
[1759165535594,8.01,208.31,208.21,7.97]
[1759165536195,12.3284,208.27,208.17,5.1694655]
[1759165536387,8.01,208.27,208.17,5.1694655]
[1759165536694,8.01,208.27,208.19,4.3199]
[1759165537597,8.01,208.27,208.18,7.97]
[1759165538095,8.01,208.27,208.19,4.3199]
[1759165538493,8.01,208.27,208.18,7.97]
[1759165538691,8.01,208.31,208.18,7.97]
[1759165539498,4.3181,208.29,208.18,7.97]
[1759165539700,8.01,208.31,208.18,7.97]
[1759165540593,12.3277,208.31,208.18,7.97]
[1759165541699,12.3277,208.31,208.21,12.2895]
[1759165541901,8.01,208.31,208.17,13.1394655]
[1759165542101,67.1638,208.31,208.17,17.4598655]
[1759165542300,8.01,208.3,208.17,17.4598655]
[1759165542500,67.1638,208.31,208.17,17.4598655]
[1759165542697,8.01,208.3,208.17,17.4598655]
[1759165543404,67.1638,208.31,208.17,17.4598655]
[1759165543608,4.3187,208.26,208.17,12.2904]
[1759165544215,4.3187,208.26,208.19,2.06545393]
[1759165544912,4.319,208.25,208.19,2.06545393]
[1759165545211,8.01,208.26,208.14,2.06545393]
[1759165545515,8.01,208.23,208.14,2.06545393]
[1759165546215,12.3293,208.23,208.14,2.06545393]
[1759165546413,8.01,208.23,208.14,2.06545393]
[1759165546810,4.3196,208.22,208.16,2.06545393]
[1759165547815,8.01,208.23,208.16,2.06545393]
[1759165548207,8.01,208.3,208.18,7.97]
[1759165548713,8.01,208.28,208.18,7.97]
[1759165549717,4.3187,208.26,208.18,7.97]
[1759165550015,8.01,208.28,208.18,7.97]
[1759165550210,120.5,208.29,208.14,5.16373778]
[1759165550211,8.01,208.23,208.14,13.13373778]
[1759165550415,8.01,208.23,208.14,7.97]
[1759165550616,4.3199,208.21,208.14,7.97]
[1759165550918,8.01,208.23,208.14,7.97]
[1759165551122,4.32,208.2,208.1,4.3218]
[1759165551419,4.32,208.2,208.09,7.97]
[1759165552215,4.3195,208.22,208.13,12.2912]
[1759165554220,4.3195,208.22,208.14,4.3209]